bitfinex-derivatives/quotes_ETHF0:USTF0_20250817
["timestamp","ask_amount","ask_price","bid_price","bid_amount"]
[1755442259415,1.4515,4551.1,4551.0,3.2078]
[1755442259615,1.4515,4551.1,4551.0,3.6289]
[1755442259810,1.4515,4551.1,4551.0,3.7997]
[1755442260314,1.4515,4551.1,4551.0,0.96]
[1755442260509,1.4515,4551.1,4551.0,1.2158]
[1755442260817,1.4515,4551.7,4551.6,1.2158]
[1755442261014,1.64187926,4551.7,4551.6,1.2158]
[1755442261315,1.64187926,4551.7,4551.6,0.5919]
[1755442261617,1.64187926,4551.7,4551.6,0.4211]
[1755442261918,1.64192268,4551.7,4551.6,0.4211]
[1755442262214,1.64192268,4551.7,4551.3,0.6268]
[1755442262415,1.096,4551.4,4551.3,0.7013]
[1755442262718,1.64192268,4551.4,4551.3,0.7013]
[1755442263011,1.64192268,4551.4,4551.3,0.5919]
[1755442263216,1.64192268,4551.4,4551.3,0.96]
[1755442263417,1.64192268,4551.4,4551.3,1.2158]
[1755442265119,1.64192268,4551.4,4551.3,0.5919]
[1755442265815,0.2501,4551.3,4550.7,2.0128449]
[1755442266009,0.4271,4551.2,4551.1,0.1708]
[1755442266209,4.4092,4551.8,4551.7,0.1624]
[1755442266417,4.5997493,4551.8,4551.7,0.96]
[1755442266616,4.8498493,4551.8,4551.7,0.96]
[1755442267311,4.8498493,4551.8,4551.7,1.2158]
[1755442267511,4.8498493,4551.8,4551.4,0.2587]
[1755442267720,0.5904,4551.4,4551.3,0.8276]
[1755442267921,1.6420493,4551.4,4551.3,0.8276]
[1755442268421,1.6420493,4551.4,4551.3,1.4544]
[1755442269416,1.4515,4551.4,4551.3,1.4544]
[1755442269625,1.38672854,4551.4,4551.3,1.4544]
[1755442270530,1.64222854,4551.4,4551.3,1.4544]
[1755442271530,1.38672854,4551.4,4551.3,1.4544]
[1755442272536,1.64222854,4551.4,4551.3,1.4544]
[1755442272738,1.64222854,4551.4,4551.3,1.2158]
[1755442275534,1.64222854,4551.4,4551.3,0.1624]
[1755442275730,0.1633,4550.6,4550.5,1.2158]
[1755442275935,1.196,4550.6,4550.5,1.4544]
[1755442276242,1.0327,4550.6,4550.5,1.4544]
[1755442276538,0.6772,4550.6,4550.5,1.4544]
[1755442277434,0.2501,4550.6,4550.5,1.4544]
[1755442278237,0.569,4550.6,4550.5,1.2244]
[1755442278434,1.4226,4550.6,4550.5,1.4762]
[1755442279026,1.1705,4550.6,4550.5,1.4762]
[1755442279232,3.2078,4551.1,4551.0,0.5752]
[1755442279435,3.2078,4551.7,4551.6,0.827]
[1755442279734,3.40110071,4551.7,4551.6,1.457]
[1755442280537,3.64390071,4551.7,4551.6,1.457]
[1755442280837,3.40110071,4551.7,4551.6,1.457]
[1755442282338,0.19330071,4551.7,4551.6,1.457]
[1755442284534,3.8617,4552.4,4552.3,0.5752]
[1755442284734,4.05508843,4552.4,4552.3,1.0803]
[1755442284936,4.41378843,4552.4,4552.3,1.457]
[1755442285137,4.82378843,4552.4,4552.3,1.2052]
[1755442285437,4.82378843,4552.4,4552.3,0.4144]
[1755442287044,4.82378843,4552.4,4552.3,0.953]
[1755442287539,0.569,4551.9,4551.8,0.5763]
[1755442287746,1.4226,4551.9,4551.8,1.2052]
[1755442288045,1.4226,4551.9,4551.8,0.5763]
[1755442288743,1.4226,4551.9,4551.8,0.1619]
[1755442288944,1.4226,4551.9,4551.8,1.2052]
[1755442289945,1.4226,4551.9,4551.8,1.457]
[1755442291548,1.61573876,4551.9,4551.8,0.4144]
[1755442291748,1.61573876,4551.9,4551.8,0.5763]
[1755442292049,1.61573876,4551.9,4551.8,0.953]
[1755442292249,1.61573876,4551.9,4551.8,0.1619]
[1755442292749,1.61573876,4551.9,4551.8,0.953]
[1755442294043,1.61573876,4551.9,4551.8,1.2052]
[1755442294240,1.61573876,4551.9,4551.8,1.457]
[1755442294845,1.4226,4551.9,4551.8,1.457]
[1755442295042,1.1705,4551.9,4551.8,3.2111449]
[1755442295346,1.36361996,4551.9,4551.8,3.2111449]
[1755442296445,1.36361996,4551.9,4551.8,1.457]
[1755442296745,1.61572464,4551.9,4551.8,1.457]
[1755442297346,1.36362464,4551.9,4551.8,0.7908]
[1755442297550,1.61572464,4551.9,4551.8,1.457]
[1755442297951,1.4226,4551.9,4551.8,1.457]
[1755442298341,1.61571896,4551.9,4551.8,1.457]
[1755442301455,1.36361896,4551.9,4551.8,1.2052]
[1755442301655,1.61571896,4551.9,4551.8,1.2052]
[1755442301953,1.61571896,4551.9,4551.8,1.457]
[1755442302254,1.61571896,4551.9,4551.8,1.2052]
[1755442302654,1.4226,4551.9,4551.8,1.2052]
[1755442302850,1.4226,4551.9,4550.8,1.09816]
[1755442302851,0.2487,4551.3,4551.2,0.9519]
[1755442303052,1.4226,4551.3,4551.2,1.2052]
[1755442303258,1.4226,4551.3,4551.2,0.1611]
[1755442303557,1.61580351,4551.3,4551.2,0.1611]
[1755442304556,1.61580351,4551.3,4551.2,0.4144]
[1755442304854,1.36370351,4551.3,4551.2,0.5763]
[1755442305157,1.4226,4551.0,4550.9,4.4115]
[1755442305550,1.4226,4551.0,4550.9,4.6648]
[1755442305754,0.4949,4551.8,4550.9,3.2078]
[1755442305947,3.2078,4551.9,4550.9,3.2078]
[1755442305948,1.4226,4551.0,4550.9,4.413]
[1755442306454,1.4226,4551.0,4550.9,4.1608]
[1755442306656,1.4226,4551.0,4550.9,3.6222]
[1755442306852,1.4226,4551.0,4550.9,3.4611]
[1755442307053,1.4226,4551.0,4550.9,3.2078]
[1755442307257,0.3203,4550.7,4550.6,0.2533]
[1755442307457,1.0639,4550.7,4550.6,0.2533]
[1755442307661,1.4595,4550.4,4550.3,3.6287]
[1755442307866,1.6534943,4550.4,4550.3,3.6287]
[1755442308060,1.4595,4550.4,4550.3,3.6287]
[1755442309058,0.5051,4550.3,4550.1,0.09889784]
[1755442309265,1.4595,4550.2,4550.1,0.09889784]
[1755442309464,1.65343686,4550.2,4550.1,0.09889784]
[1755442310465,1.65343686,4550.2,4550.1,0.26089784]
[1755442310660,1.65343686,4550.2,4550.1,1.29879784]
[1755442311265,1.65343686,4550.2,4550.1,0.09889784]
[1755442313764,0.8899,4550.1,4549.4,0.2589]
[1755442313965,1.2047,4549.5,4549.4,1.1999]
[1755442314160,1.4595,4549.5,4549.4,1.4553]
[1755442314664,4.0322,4550.3,4550.2,0.3204]
[1755442314864,4.6673,4550.3,4550.2,1.4553]
[1755442315062,4.86069304,4550.3,4550.2,1.1999]
[1755442315462,4.86069304,4550.3,4550.2,0.8317]
[1755442315866,4.86069304,4550.3,4550.2,1.1999]
[1755442316462,4.86069304,4550.3,4550.2,0.2589]
[1755442316671,0.5696,4550.0,4549.9,0.4209]
[1755442316871,0.8899,4549.9,4549.6,0.2589]
[1755442317062,0.1704,4549.7,4549.6,1.1964]
[1755442317376,0.4252,4549.7,4549.6,1.1964]
[1755442317667,0.2548,4549.9,4549.8,0.5728]
[1755442317869,1.0511,4549.9,4549.8,1.4553]
[1755442318068,1.2092,4549.9,4549.8,1.4553]
[1755442318368,0.6663,4549.9,4549.8,1.4553]
[1755442318563,0.2548,4549.9,4549.8,1.4553]
[1755442319761,0.2548,4550.1,4549.8,0.941]
[1755442319965,1.0511,4550.1,4550.0,1.4553]
[1755442320170,1.4595,4550.1,4550.0,1.4553]
[1755442321265,3.2078,4550.3,4550.0,1.1999]
[1755442321571,0.4115,4550.1,4550.0,0.5728]
[1755442321770,1.0511,4550.1,4550.0,0.5728]
[1755442321972,1.2092,4550.1,4550.0,0.5728]
[1755442322172,1.2092,4550.1,4550.0,1.4553]
[1755442322466,3.2078,4550.3,4550.2,0.4108]
[1755442322671,0.6396,4551.1,4550.2,0.5728]
[1755442322874,1.4595,4551.1,4551.0,1.1999]
[1755442323066,1.4595,4551.1,4551.0,1.4553]
[1755442323268,3.3078,4551.2,4551.0,1.4553]
[1755442323466,3.5626,4551.2,4551.1,1.4553]
[1755442323673,4.7673,4551.2,4551.1,0.8317]
[1755442324166,4.7673,4551.2,4551.1,1.1999]
[1755442324373,4.7673,4551.2,4551.1,1.4553]
[1755442324680,4.7673,4551.2,4551.1,1.1999]
[1755442325065,4.7673,4551.2,4550.7,0.6271]
[1755442325271,1.4595,4550.8,4550.7,1.1999]
[1755442325871,1.4595,4550.8,4550.7,0.5793]
[1755442327975,1.4595,4550.8,4550.7,1.1999]
[1755442328167,1.2092,4550.8,4550.7,1.4553]
[1755442328374,1.4595,4550.8,4550.7,0.4209]
[1755442328569,1.4595,4550.8,4550.7,1.1999]
[1755442328768,3.3078,4551.2,4550.7,1.1999]
[1755442328769,0.2548,4551.0,4550.7,0.5728]
[1755442328972,0.2548,4551.0,4550.9,0.5728]
[1755442329169,0.2548,4551.0,4550.9,1.4553]
[1755442329370,1.0511,4551.0,4550.9,1.1999]
[1755442329572,1.4595,4551.0,4550.9,1.4553]
[1755442329971,1.2092,4551.0,4550.9,1.4553]
[1755442330572,3.3078,4551.2,4551.1,0.162]
[1755442330770,3.92650424,4551.2,4551.1,1.4553]
[1755442330966,4.96080424,4551.2,4551.1,1.4553]
[1755442331172,4.96080424,4551.2,4551.1,1.1999]
[1755442331473,4.96080424,4551.2,4551.1,0.5793]
[1755442331976,4.96080424,4551.2,4550.5,0.2589]
[1755442331977,4.7673,4551.2,4550.5,0.2589]
[1755442332277,1.65306145,4551.1,4551.0,0.5793]
[1755442332677,1.65312982,4551.1,4551.0,1.1999]
[1755442332878,1.65312982,4551.1,4551.0,1.4553]
[1755442334479,0.19362982,4551.1,4551.0,1.4553]
[1755442334877,0.44842982,4551.1,4551.0,1.4553]
[1755442335180,1.24472982,4551.1,4551.0,1.4553]
[1755442335380,1.49502982,4551.1,4551.0,1.4553]
[1755442335583,1.65312982,4551.1,4551.0,1.4553]
[1755442336380,0.44842982,4551.1,4551.0,1.4553]
[1755442336579,0.1,4551.2,4551.1,1.4553]
[1755442337881,0.1,4551.2,4551.1,3.2094449]
[1755442338081,0.1,4551.2,4551.1,6.2094449]
[1755442339078,0.1,4551.2,4551.1,6.2313449]
[1755442339280,0.4069,4552.0,4551.9,1.4042]
[1755442339789,3.4559,4552.3,4551.9,1.4042]
[1755442339983,1.21243237,4552.2,4552.1,1.4042]
[1755442340188,1.0211,4552.2,4552.1,1.4042]
[1755442340789,1.0211,4552.2,4552.1,3.1583449]
[1755442340988,3.2078,4552.3,4552.1,3.1583449]
[1755442341287,3.2078,4552.3,4552.2,1.4042]
[1755442342192,0.6595,4552.5,4552.4,1.4042]
[1755442342484,3.8673,4552.8,4552.7,1.1676]
[1755442342684,4.2289,4552.8,4552.7,1.4042]
[1755442342890,0.4114,4552.8,4552.7,3.1583449]
[1755442343288,0.6595,4552.8,4552.7,3.1583449]
[1755442344494,0.6112,4553.1,4552.7,3.1583449]
[1755442344694,0.2496,4553.1,4552.7,2.3294449]
[1755442344900,0.4114,4552.9,4552.8,0.8151]
[1755442345101,1.0211,4552.9,4552.8,0.8151]
[1755442345493,1.0211,4552.9,4552.8,1.4042]
[1755442346201,1.4291,4552.9,4552.8,1.4042]
[1755442350401,1.4291,4552.9,4552.8,1.1676]
[1755442350603,0.4114,4551.9,4551.8,3.7831]
[1755442350806,0.6595,4551.9,4551.8,5.7738449]
[1755442351304,0.4069,4551.9,4551.8,6.3661449]
[1755442351604,0.2481,4551.9,4551.8,6.3661449]
[1755442352805,0.6595,4551.9,4551.8,6.3661449]
[1755442353002,1.0211,4551.9,4551.8,6.3661449]
[1755442353604,1.4291,4551.9,4551.8,0.5759]
[1755442354105,1.4291,4551.7,4551.6,0.5759]
[1755442354801,0.5698,4551.7,4551.4,0.2398]
[1755442355006,1.4291,4551.5,4551.4,0.2398]
[1755442355407,1.4291,4551.5,4551.4,0.406]
[1755442355796,1.4291,4551.5,4551.4,0.9284]
[1755442356308,1.4291,4551.5,4551.4,1.1676]
[1755442357601,1.1795,4551.5,4551.4,1.4042]
[1755442358302,1.1795,4552.2,4552.1,0.3361]
[1755442358608,1.4291,4552.2,4552.1,1.1676]
[1755442358910,1.4291,4552.2,4552.1,0.406]
[1755442359204,1.4291,4552.2,4551.8,0.2366]
[1755442359205,1.4291,4551.9,4551.8,0.406]
[1755442359405,0.5698,4551.9,4551.4,1.7541449]
[1755442359607,1.4291,4551.8,4551.7,0.406]
[1755442360298,1.4291,4551.8,4551.7,0.9284]
[1755442360499,1.4291,4551.8,4551.7,1.1676]
[1755442361206,0.1588,4551.8,4551.7,0.5753]
[1755442361409,1.0211,4551.8,4551.7,1.1676]
[1755442361606,1.4291,4551.8,4551.7,1.1676]
[1755442362911,1.4291,4551.8,4551.7,0.5759]
[1755442366213,0.8593,4551.7,4551.5,1.7541449]
[1755442366410,1.4291,4551.6,4551.5,2.6825449]
[1755442366611,0.4114,4550.7,4550.6,5.3710449]
[1755442366818,1.0211,4550.7,4550.6,5.7738449]
[1755442367309,1.0211,4550.7,4550.6,6.3661449]
[1755442368113,1.4185,4550.7,4550.6,6.1295449]
[1755442368712,1.4185,4550.7,4550.6,6.3663449]
[1755442369218,1.4185,4550.7,4550.6,4.3754]
[1755442370114,1.4185,4550.7,4550.6,4.6122]
[1755442372818,1.1795,4550.7,4550.6,4.6122]
[1755442373013,0.239,4551.3,4551.2,0.1624]
[1755442373319,1.2115,4551.3,4551.2,3.1622449]
[1755442373520,1.0435,4551.3,4551.2,3.1622449]
[1755442375620,0.4232,4551.5,4551.4,0.1624]
[1755442375821,1.4505,4551.5,4551.4,1.4081]
[1755442377425,1.4505,4551.5,4551.4,1.1713]
[1755442378022,1.4505,4551.5,4551.4,0.8098]
[1755442378218,0.168,4550.7,4550.6,3.5693]
[1755442378423,1.4505,4550.7,4550.6,3.7317]
[1755442378825,1.4505,4550.7,4550.6,3.2078]
[1755442379119,0.0219,4551.2,4550.1,0.09889784]
[1755442379120,1.4505,4550.2,4550.1,1.27019784]
[1755442381126,1.4505,4550.2,4550.1,0.26129784]
[1755442381325,1.4505,4550.2,4550.1,0.09889784]
[1755442382029,1.4505,4550.2,4550.1,0.33719784]
[1755442382328,1.4505,4550.2,4550.1,0.49959784]
[1755442383431,1.4505,4550.2,4550.1,1.02469784]
[1755442383728,1.4505,4550.2,4550.1,0.09889784]
[1755442384429,1.64041449,4550.2,4550.1,0.09889784]
[1755442385332,1.4505,4550.2,4550.1,0.09889784]
[1755442385835,1.6622702,4550.2,4550.1,0.09889784]
[1755442386331,1.66227897,4550.2,4550.1,0.09889784]
[1755442387031,1.64037897,4550.2,4550.1,0.09889784]
[1755442389036,1.64021937,4550.2,4550.1,0.09889784]
[1755442391832,1.64017399,4550.2,4550.1,0.09889784]
[1755442392526,1.64017399,4550.2,4550.1,0.49959784]
[1755442392939,1.64017399,4550.2,4550.1,0.09889784]
[1755442393634,3.39431889,4550.2,4550.1,0.09889784]
[1755442394432,1.64017399,4550.2,4550.1,0.33719784]
[1755442394634,1.64017399,4550.2,4550.1,0.49959784]
[1755442395034,1.64023443,4550.2,4550.1,1.02469784]
[1755442395435,1.64023443,4550.2,4550.1,0.09889784]
[1755442396330,0.5791,4549.0,4548.9,0.8098]
[1755442396529,1.4505,4549.0,4548.9,1.4081]
[1755442397139,1.0435,4549.0,4548.9,1.4081]
[1755442397335,3.631,4549.5,4549.4,0.326]
[1755442397640,4.84650649,4549.5,4549.4,1.1986]
[1755442397839,4.84650649,4549.5,4549.4,1.4412]
[1755442398041,4.84650547,4549.5,4549.4,1.4412]
[1755442398431,4.06160547,4549.5,4549.4,1.4412]
[1755442398738,0.19120547,4549.5,4549.4,1.4412]
[1755442399141,3.8601,4550.0,4549.9,1.4497]
[1755442399342,4.42915218,4550.0,4549.9,1.4497]
[1755442399943,3.39895218,4550.0,4549.9,1.4497]
[1755442401138,0.19115218,4550.0,4549.9,1.4497]
[1755442401341,0.81656994,4550.3,4549.9,0.5795]
[1755442401643,0.43866994,4550.2,4549.9,0.5795]
[1755442401946,0.19116994,4550.1,4550.0,1.4497]
[1755442404043,0.60433468,4550.1,4550.0,1.4497]
[1755442404243,0.84353468,4550.1,4550.0,1.4497]
[1755442404444,1.22143468,4550.1,4550.0,1.4497]
[1755442404645,1.22148704,4550.1,4550.0,1.4497]
[1755442405246,1.64238704,4550.1,4550.0,1.4497]
[1755442405645,1.64238704,4550.1,4550.0,1.2071]
[1755442407149,1.64238704,4550.1,4549.3,3.4466]
[1755442407348,0.19128704,4550.0,4549.9,1.4497]
[1755442407546,0.19128704,4550.2,4549.9,0.5795]
[1755442407742,0.2475,4550.0,4549.9,0.5795]
[1755442407947,1.22148704,4550.0,4549.9,0.5795]
[1755442408148,1.22148704,4550.0,4549.9,1.4497]
[1755442408350,1.64238704,4550.0,4549.9,1.4497]
[1755442409246,1.64238704,4550.0,4549.9,1.2071]
[1755442409453,1.64238704,4550.0,4549.9,1.4497]
[1755442410048,1.64281949,4550.0,4549.9,1.4497]
[1755442410445,1.38391949,4550.0,4549.9,1.4497]
[1755442411550,1.64281949,4550.0,4549.9,1.4497]
[1755442412452,1.64289317,4550.0,4549.9,1.4497]
[1755442413048,1.4511,4550.0,4549.9,1.4497]
[1755442413251,1.64289319,4550.0,4549.9,1.2071]
[1755442413644,2.03746428,4550.0,4549.9,1.2071]
[1755442413853,2.22929492,4550.0,4549.9,1.2071]
[1755442414755,2.22929492,4550.0,4549.9,0.5719]
[1755442415345,0.5668,4549.6,4549.5,0.2388]
[1755442415545,1.64293064,4549.6,4549.5,0.3989]
[1755442415751,1.64293064,4549.6,4549.5,0.9607]
[1755442416054,1.64293064,4549.6,4549.5,1.2071]
[1755442419558,1.64293064,4549.6,4549.5,1.4497]
[1755442419948,1.38403064,4549.6,4549.5,1.4497]
[1755442420657,0.19183064,4549.6,4549.5,1.4497]
[1755442421250,0.2475,4549.9,4549.6,0.8702]
[1755442421558,0.2475,4549.9,4549.8,1.4497]
[1755442421755,1.02593796,4549.9,4549.8,1.4497]
[1755442421951,1.80863796,4549.9,4549.8,1.4497]
[1755442422150,1.97063796,4549.9,4549.8,1.4497]
[1755442422356,1.97063796,4549.9,4549.4,1.7541449]
[1755442422357,2.2295396,4549.9,4549.4,1.7541449]
[1755442422554,0.6523,4549.5,4549.4,1.047]
[1755442422755,1.4511,4549.5,4549.4,1.2071]
[1755442422964,1.64300721,4549.5,4549.4,1.2071]
[1755442423160,1.64300721,4549.5,4549.4,1.4497]
[1755442423960,1.64301022,4549.5,4549.4,1.4497]
[1755442424159,1.38411022,4549.5,4549.4,1.4497]
[1755442425465,1.64301022,4549.5,4549.4,1.4497]
[1755442426163,1.64301022,4549.5,4549.4,1.2071]
[1755442427364,1.64301022,4549.5,4549.4,0.8183]
[1755442427564,1.64301022,4549.5,4549.4,1.2071]
[1755442427965,1.64301022,4549.5,4549.4,1.4561]
[1755442428672,0.19191022,4549.5,4549.4,1.4561]
[1755442429168,0.36111022,4549.5,4549.4,0.318]
[1755442429370,0.76471022,4549.5,4549.4,0.5526]
[1755442429759,1.64041022,4549.5,4549.4,0.5526]
[1755442429965,1.64041022,4549.5,4549.4,1.1548]
[1755442430372,0.1,4551.2,4550.6,0.16]
[1755442430373,3.2078,4550.7,4550.6,0.16]
[1755442430669,0.3417,4551.2,4551.1,1.16585487]
[1755442430870,0.1,4551.2,4551.1,2.91999977]
[1755442432068,3.2078,4552.3,4552.2,0.9658]
[1755442432274,0.2417,4552.3,4552.2,2.9172449]
[1755442432564,0.9499,4552.9,4552.8,0.9658]
[1755442432769,1.2068,4552.9,4552.8,0.7174]
[1755442432971,1.4485,4552.9,4552.8,1.0872]
[1755442433275,1.4485,4552.9,4552.8,0.3946]
[1755442434074,1.4485,4552.9,4552.8,1.0872]
[1755442434266,1.1916,4552.9,4552.8,1.0872]
[1755442434467,1.4485,4552.9,4552.8,1.0872]
[1755442438872,0.4024,4552.9,4552.8,1.52627]
[1755442439068,3.2078,4553.0,4552.9,0.3105]
[1755442439275,3.4495,4553.0,4552.9,1.1631]
[1755442439469,3.2078,4553.0,4552.9,1.1631]
[1755442439779,3.4495,4553.0,4552.9,2.9172449]
[1755442440480,0.2417,4553.0,4552.9,2.9172449]
[1755442441277,1.0224,4553.0,4552.9,2.8413449]
[1755442442273,0.6453,4553.0,4552.9,2.8413449]
[1755442443074,1.0224,4553.0,4552.9,2.8413449]
[1755442443376,0.6453,4553.0,4552.9,2.8413449]
[1755442447279,0.2417,4553.6,4553.0,1.11955]
[1755442447576,0.2417,4554.2,4554.1,1.52615]
[1755442447873,0.4024,4554.2,4554.1,2.8413449]
[1755442448275,3.2078,4554.4,4554.1,2.8413449]
[1755442448276,3.2078,4554.4,4554.2,0.43894]
[1755442448473,1.0224,4554.8,4554.2,3.2078]
[1755442448683,0.5728,4554.8,4554.7,0.16]
[1755442448981,0.5728,4554.8,4554.7,0.7174]
[1755442449170,0.2417,4555.0,4554.9,0.5574]
[1755442449369,0.4024,4555.0,4554.9,2.8413449]
[1755442449670,1.0224,4555.0,4554.9,2.8413449]
[1755442451080,1.1916,4555.4,4555.3,1.0872]
[1755442451377,1.4485,4555.4,4555.3,2.8413449]
[1755442451678,0.5728,4555.4,4555.1,1.9887449]
[1755442451880,1.4485,4555.2,4555.1,2.4715449]
[1755442452080,1.4485,4555.2,4555.1,2.7199449]
[1755442452279,1.4485,4555.2,4555.1,2.8413449]
[1755442454278,1.4485,4555.2,4555.1,1.0872]
[1755442454483,1.4485,4555.2,4555.1,2.8413449]
[1755442454984,1.4485,4555.2,4554.7,3.2078]
[1755442455171,1.4485,4555.2,4553.7,31.629]
[1755442455172,0.6188,4554.2,4554.0,1.7541449]
[1755442455370,1.4485,4554.1,4554.0,2.1487449]
[1755442455678,1.4485,4554.1,4554.0,22.4347449]
[1755442455879,1.4485,4554.1,4554.0,22.7575449]
[1755442456476,1.4485,4554.1,4554.0,0.7174]
[1755442456782,1.4485,4554.1,4554.0,0.3946]
[1755442457485,1.4485,4554.1,4554.0,2.8413449]
[1755442457877,1.4485,4554.1,4554.0,23.1273449]
[1755442458078,1.4485,4554.1,4554.0,23.1263449]
[1755442460487,1.1849,4554.1,4554.0,23.1263449]
[1755442460689,1.4419,4554.1,4554.0,23.1263449]
[1755442462887,3.2078,4554.6,4553.7,34.8368]
[1755442462888,3.2078,4554.6,4553.8,0.2563]
[1755442463188,1.4452,4554.3,4554.2,2.8696449]
[1755442463388,2.01811314,4554.3,4554.2,2.8696449]
[1755442463587,2.01811314,4554.3,4554.2,2.7491449]
[1755442465790,2.01811314,4554.3,4554.2,2.8696449]
[1755442468589,2.01811314,4554.3,4554.2,2.1685449]
[1755442468793,2.01811314,4554.3,4554.2,22.4515449]
[1755442468997,2.01811314,4554.3,4554.2,2.4905449]
[1755442469189,2.01811314,4554.3,4554.2,22.7735449]
[1755442469493,2.01811314,4554.3,4554.2,22.4515449]
[1755442469691,2.01811314,4554.3,4554.2,2.1685449]
[1755442469993,2.01811314,4554.3,4554.2,22.1952449]
[1755442470188,1.2062,4554.0,4553.9,0.4144]
[1755442470397,2.01811314,4554.0,4553.9,20.6974]
[1755442470591,2.01811314,4554.0,4553.9,22.4515449]
[1755442470791,2.01811314,4554.0,4553.9,2.7491449]
[1755442470991,2.01811314,4554.0,4553.9,23.0321449]
[1755442471893,2.01811314,4554.0,4553.9,23.1526449]
[1755442472288,2.01811314,4554.0,4553.9,2.8696449]
[1755442472491,2.01811314,4554.0,4553.9,23.1516449]
[1755442473387,1.59861314,4554.0,4553.9,23.1516449]
[1755442474193,2.01811314,4554.0,4553.9,23.1516449]
[1755442475298,1.59861314,4554.0,4553.9,23.1516449]
[1755442476295,1.22101314,4554.0,4553.9,23.1516449]
[1755442476694,1.59861314,4554.0,4553.9,23.1516449]
[1755442477596,0.57291314,4554.0,4553.9,25.0029898]
[1755442477790,0.239,4554.7,4554.6,0.5372]
[1755442477992,0.81394489,4554.7,4554.6,21.2155]
[1755442478196,0.81394489,4554.7,4554.6,21.4718]
[1755442480101,0.97084489,4554.7,4554.6,23.1506449]
[1755442480398,1.60064489,4554.7,4554.6,23.1506449]
[1755442480592,0.57494489,4554.7,4554.6,23.1506449]
[1755442480799,0.81394489,4554.7,4554.6,23.2259449]
[1755442481692,0.81394489,4554.7,4554.6,2.9449449]
[1755442481997,1.60064489,4554.7,4554.6,23.1486449]
[1755442482398,1.0257,4554.7,4554.6,23.1486449]
[1755442482794,1.0257,4554.7,4554.6,2.8696449]
[1755442482994,1.4452,4554.7,4554.6,23.1476449]
[1755442483191,1.4452,4554.7,4554.6,2.8696449]
[1755442483498,1.4452,4554.7,4554.6,23.1476449]
[1755442484396,1.1882,4554.7,4554.6,23.1476449]
[1755442485402,0.6481,4554.7,4554.6,23.2229449]
[1755442486001,1.0257,4554.7,4554.6,23.1476449]
[1755442486597,1.4452,4554.7,4554.6,23.1476449]
[1755442486796,1.4452,4554.7,4554.4,3.2078]
[1755442486994,0.5716,4554.1,4553.8,1.7541449]
[1755442487197,1.4452,4554.0,4553.9,20.6904]
[1755442487904,1.4452,4554.0,4553.9,0.1581]
[1755442488101,1.4452,4554.0,4553.9,20.6695]
[1755442488504,1.4452,4554.0,4553.9,20.9916]
[1755442489403,0.239,4554.0,4553.9,21.4423]
[1755442493105,0.4028,4554.0,4553.9,21.3669]
[1755442493903,0.4028,4554.0,4553.9,21.80587]
[1755442494106,0.4028,4554.0,4553.9,21.3669]
[1755442495412,1.0149,4554.0,4553.9,21.3669]
[1755442497210,0.64,4554.0,4553.9,21.3669]
[1755442497511,1.0149,4554.0,4553.9,21.3669]
[1755442498913,0.4028,4554.0,4553.9,21.4423]
[1755442499414,1.0149,4554.0,4553.9,21.3669]
[1755442500712,1.4171,4554.0,4553.9,21.3669]
[1755442500919,1.0403,4553.7,4553.6,3.2078]
[1755442501120,1.4152,4553.7,4553.6,23.4798]
[1755442501319,1.4152,4553.7,4553.6,3.2078]
[1755442501609,1.4152,4553.7,4553.1,3.2078]
[1755442501814,0.5655,4553.2,4553.1,3.366]
[1755442502010,0.5655,4553.2,4552.7,33.3691449]
[1755442502214,0.8026,4552.7,4552.6,0.3936]
[1755442502406,0.8026,4552.7,4552.6,20.7513]
[1755442502407,1.4152,4552.7,4552.6,20.7513]
[1755442502609,1.4152,4552.7,4552.6,22.0251449]
[1755442503209,1.4152,4552.7,4552.6,22.1833449]
[1755442503410,1.4152,4552.7,4552.6,2.4698449]
[1755442503615,1.4152,4552.7,4552.6,22.4187449]
[1755442503915,1.4152,4552.7,4552.6,22.1833449]
[1755442504105,1.4152,4552.7,4552.6,22.4187449]
[1755442504312,1.4152,4552.7,4552.6,20.271]
[1755442504912,1.4152,4552.7,4552.6,20.6646]
[1755442505215,1.4152,4552.7,4552.6,20.4292]
[1755442506718,1.4152,4552.7,4552.6,20.6646]
[1755442507114,1.4152,4552.7,4552.6,0.3936]
[1755442507314,1.4152,4552.7,4552.6,20.6646]
[1755442507519,1.4152,4552.7,4552.6,22.4187449]
[1755442508017,1.4152,4552.7,4552.6,22.7408449]
[1755442508516,1.4152,4552.7,4552.6,23.1161449]
[1755442512724,1.4152,4552.7,4552.6,22.1843449]
[1755442513324,1.4152,4552.7,4552.6,22.0251449]
[1755442513821,4.623,4552.7,4552.6,22.0251449]
[1755442514720,4.623,4552.7,4552.6,1.7541449]
[1755442514921,4.623,4552.7,4552.6,22.0241449]
[1755442515925,1.4152,4552.2,4552.1,3.366]
[1755442516130,1.4152,4552.2,4552.1,23.8714]
[1755442517232,1.4152,4552.2,4552.1,0.3936]
[1755442517435,1.4152,4552.2,4552.1,20.4282]
[1755442517626,1.4152,4552.2,4552.1,0.716]
[1755442517827,1.1775,4552.2,4552.1,21.361]
[1755442518027,0.6381,4552.2,4552.1,21.362]
[1755442518228,0.2381,4552.6,4552.1,20.8797]
[1755442518434,1.0241,4552.6,4552.5,1.0968]
[1755442518735,1.0241,4552.6,4552.5,21.3668]
[1755442519030,1.4147,4552.6,4552.5,21.3668]
[1755442523635,0.2381,4552.6,4552.5,21.3668]
[1755442523928,0.2381,4552.9,4552.5,21.8815]
[1755442524130,1.7541449,4554.4,4552.5,21.8815]
[1755442524131,0.4841,4553.5,4552.9,0.6335]
[1755442524435,1.4147,4553.5,4553.4,2.8511449]
[1755442524636,1.1801,4553.5,4553.4,23.1191449]
[1755442525331,1.4147,4553.5,4553.4,2.8511449]
[1755442525536,1.4147,4553.5,4553.4,23.1191449]